{"text_format":"3","workbook":"xlsx","n_sheets":2,"sheets":["Weight Loss Tracker","calculations"],"not_rendered":{"charts":1,"defined_names":7},"read":"whole","date_system":"1900"}

{"sheet":"Weight Loss Tracker","index":0,"n_rows":129,"n_cols":11,"rows_kept":129,"merged":[[0,5,0,9],[1,6,3,9]]}
[null,"GOAL WEIGHT","CHART VIEW",null,null," KIMBERLY'S WEIGHT LOSS"]
[{"$nulls":6},"TRACKER"]
[null,{"v":172,"d":"172.0"},"WEEKLY",{"$nulls":7}," "]
[]
[]
[{"$nulls":10}," "]
{"$rows_empty":18}
[null,"DATE","WEIGHT"]
[null,"2012-11-30",{"v":176,"d":"176.0"}]
[null,"2012-12-07",{"v":176,"d":"176.0"}]
[null,"2012-12-14",177.6]
[null,"2012-12-21",176.5]
[null,"2012-12-28",176.1]
[null,"2013-01-04",{"v":174,"d":"174.0"}]
[null,"2013-01-11",{"v":173,"d":"173.0"}]
[null,"2013-01-18",{"v":172,"d":"172.0"}]
[null,"2013-01-25",{"v":172,"d":"172.0"}]
[null,"2013-02-01",{"v":173,"d":"173.0"}]
[null,"2013-02-08",{"v":174,"d":"174.0"}]
[null,"2013-02-15",{"v":175,"d":"175.0"}]
[null,"2013-02-22"]
[null,"2013-03-01"]
[null,"2013-03-08"]
[null,"2013-03-15"]
[null,"2013-03-22"]
[null,"2013-03-29"]
[null,"2013-04-05"]
[null,"2013-04-12"]
[null,"2013-04-19"]
[null,"2013-04-26"]
[null,"2013-05-03"]
[null,"2013-05-10"]
[null,"2013-05-17"]
[null,"2013-05-24"]
[null,"2013-05-31"]
[null,"2013-06-07"]
[null,"2013-06-14"]
[null,"2013-06-21"]
[null,"2013-06-28"]
[null,"2013-07-05"]
[null,"2013-07-12"]
[null,"2013-07-19"]
[null,"2013-07-26"]
[null,"2013-08-02"]
[null,"2013-08-09"]
[null,"2013-08-16"]
[null,"2013-08-23"]
[null,"2013-08-30"]
[null,"2013-09-06"]
[null,"2013-09-13"]
[null,"2013-09-20"]
[null,"2013-09-27"]
[null,"2013-10-04"]
[null,"2013-10-11"]
[null,"2013-10-18"]
[null,"2013-10-25"]
[null,"2013-11-01"]
[null,"2013-11-08"]
[null,"2013-11-15"]
[null,"2013-11-22"]
[null,"2013-11-29"]
[null,"2013-12-06"]
[null,"2013-12-13"]
[null,"2013-12-20"]
[null,"2013-12-27"]
[null,"2014-01-03"]
[null,"2014-01-10"]
[null,"2014-01-17"]
[null,"2014-01-24"]
[null,"2014-01-31"]
[null,"2014-02-07"]
[null,"2014-02-14"]
[null,"2014-02-21"]
[null,"2014-02-28"]
[null,"2014-03-07"]
[null,"2014-03-14"]
[null,"2014-03-21"]
[null,"2014-03-28"]
[null,"2014-04-04"]
[null,"2014-04-11"]
[null,"2014-04-18"]
[null,"2014-04-25"]
[null,"2014-05-02"]
[null,"2014-05-09"]
[null,"2014-05-16"]
[null,"2014-05-23"]
[null,"2014-05-30"]
[null,"2014-06-06"]
[null,"2014-06-13"]
[null,"2014-06-20"]
[null,"2014-06-27"]
[null,"2014-07-04"]
[null,"2014-07-11"]
[null,"2014-07-18"]
[null,"2014-07-25"]
[null,"2014-08-01"]
[null,"2014-08-08"]
[null,"2014-08-15"]
[null,"2014-08-22"]
[null,"2014-08-29"]
[null,"2014-09-05"]
[null,"2014-09-12"]
[null,"2014-09-19"]
[null,"2014-09-26"]
[null,"2014-10-03"]
[null,"2014-10-10"]
[null,"2014-10-17"]
[null,"2014-10-24"]
[null,"2014-10-31"]
[null,"2014-11-07"]
[null,"2014-11-14"]
[null,"2014-11-21"]

{"sheet":"calculations","index":1,"n_rows":108,"n_cols":17,"rows_kept":108,"hidden":true}
["*** Sheet to remain hidden ***"]
[]
[{"$f":"COUNTIF(A5:A108,FALSE)","v":13},"Periods","Values",{"$nulls":3},{"$f":"COUNTIF(H5:H28,\">\"&0)","v":4},"Periods",null,"Values"]
[null,"Week",null,null,true,null,null,"Month","EOM"]
[{"$f":"IF(('Weight Loss Tracker'!C26=0)*('Weight Loss Tracker'!C25=0),TRUE)","v":false},{"$f":"IF(A5,0,IF('Weight Loss Tracker'!B26=0,'Weight Loss Tracker'!B25+5,'Weight Loss Tracker'!B26))","v":"2012-11-30"},{"$f":"'Weight Loss Tracker'!C26","v":176},{"$f":"MIN(ChartPeriods)","v":"2012-11-30"},{"$f":"IF($E$4,GoalWeight,NA())","v":172},null,null,{"$f":"DATE(YEAR(B5),MONTH(B5),1)","v":"2012-11-01"},{"$f":"EOMONTH(H5,0)","v":"2012-11-30"},{"$f":"IFERROR(AVERAGEIFS(WeightTable[WEIGHT],WeightTable[DATE],\">=\"&H5,WeightTable[DATE],\"<=\"&I5),NA())","v":176}]
[{"$f":"IF(('Weight Loss Tracker'!C27=0)*('Weight Loss Tracker'!C26=0),TRUE)","v":false},{"$f":"IF(A6,0,IF('Weight Loss Tracker'!B27=0,'Weight Loss Tracker'!B26+5,'Weight Loss Tracker'!B27))","v":"2012-12-07"},{"$f":"'Weight Loss Tracker'!C27","v":176},{"$f":"MAX(ChartPeriods)","v":"2013-02-22"},172,null,null,{"$f":"IF(I5+1>MAX($B:$B),NA(),I5+1)","v":"2012-12-01"},"2012-12-31",{"$f":"IFERROR(AVERAGEIFS(WeightTable[WEIGHT],WeightTable[DATE],\">=\"&H6,WeightTable[DATE],\"<=\"&I6),NA())","v":176.55}]
[{"$f":"IF(('Weight Loss Tracker'!C28=0)*('Weight Loss Tracker'!C27=0),TRUE)","v":false},{"$f":"IF(A7,0,IF('Weight Loss Tracker'!B28=0,'Weight Loss Tracker'!B27+5,'Weight Loss Tracker'!B28))","v":"2012-12-14"},{"$f":"'Weight Loss Tracker'!C28","v":177.6},{"$nulls":4},{"$f":"IF(I6+1>MAX($B:$B),NA(),I6+1)","v":"2013-01-01"},"2013-01-31",{"$f":"IFERROR(AVERAGEIFS(WeightTable[WEIGHT],WeightTable[DATE],\">=\"&H7,WeightTable[DATE],\"<=\"&I7),NA())","v":172.75}]
[{"$f":"IF(('Weight Loss Tracker'!C29=0)*('Weight Loss Tracker'!C28=0),TRUE)","v":false},{"$f":"IF(A8,0,IF('Weight Loss Tracker'!B29=0,'Weight Loss Tracker'!B28+5,'Weight Loss Tracker'!B29))","v":"2012-12-21"},{"$f":"'Weight Loss Tracker'!C29","v":176.5},{"$nulls":4},"2013-02-01","2013-02-28",{"$f":"IFERROR(AVERAGEIFS(WeightTable[WEIGHT],WeightTable[DATE],\">=\"&H8,WeightTable[DATE],\"<=\"&I8),NA())","v":174}]
[{"$f":"IF(('Weight Loss Tracker'!C30=0)*('Weight Loss Tracker'!C29=0),TRUE)","v":false},{"$f":"IF(A9,0,IF('Weight Loss Tracker'!B30=0,'Weight Loss Tracker'!B29+5,'Weight Loss Tracker'!B30))","v":"2012-12-28"},{"$f":"'Weight Loss Tracker'!C30","v":176.1},{"$nulls":4},{"$error":"#N/A"},{"$error":"#N/A"},{"$f":"IFERROR(AVERAGEIFS(WeightTable[WEIGHT],WeightTable[DATE],\">=\"&H9,WeightTable[DATE],\"<=\"&I9),NA())","v":{"$error":"#N/A"}}]
[{"$f":"IF(('Weight Loss Tracker'!C31=0)*('Weight Loss Tracker'!C30=0),TRUE)","v":false},{"$f":"IF(A10,0,IF('Weight Loss Tracker'!B31=0,'Weight Loss Tracker'!B30+5,'Weight Loss Tracker'!B31))","v":"2013-01-04"},{"$f":"'Weight Loss Tracker'!C31","v":174},{"$nulls":4},{"$error":"#N/A"},{"$error":"#N/A"},{"$f":"IFERROR(AVERAGEIFS(WeightTable[WEIGHT],WeightTable[DATE],\">=\"&H10,WeightTable[DATE],\"<=\"&I10),NA())","v":{"$error":"#N/A"}}]
[{"$f":"IF(('Weight Loss Tracker'!C32=0)*('Weight Loss Tracker'!C31=0),TRUE)","v":false},{"$f":"IF(A11,0,IF('Weight Loss Tracker'!B32=0,'Weight Loss Tracker'!B31+5,'Weight Loss Tracker'!B32))","v":"2013-01-11"},{"$f":"'Weight Loss Tracker'!C32","v":173},{"$nulls":4},{"$error":"#N/A"},{"$error":"#N/A"},{"$f":"IFERROR(AVERAGEIFS(WeightTable[WEIGHT],WeightTable[DATE],\">=\"&H11,WeightTable[DATE],\"<=\"&I11),NA())","v":{"$error":"#N/A"}},{"$nulls":6},{"$f":"MAX($B:$B)","v":"2013-02-22"}]
[{"$f":"IF(('Weight Loss Tracker'!C33=0)*('Weight Loss Tracker'!C32=0),TRUE)","v":false},{"$f":"IF(A12,0,IF('Weight Loss Tracker'!B33=0,'Weight Loss Tracker'!B32+5,'Weight Loss Tracker'!B33))","v":"2013-01-18"},{"$f":"'Weight Loss Tracker'!C33","v":172},{"$nulls":4},{"$error":"#N/A"},{"$error":"#N/A"},{"$f":"IFERROR(AVERAGEIFS(WeightTable[WEIGHT],WeightTable[DATE],\">=\"&H12,WeightTable[DATE],\"<=\"&I12),NA())","v":{"$error":"#N/A"}}]
[{"$f":"IF(('Weight Loss Tracker'!C34=0)*('Weight Loss Tracker'!C33=0),TRUE)","v":false},{"$f":"IF(A13,0,IF('Weight Loss Tracker'!B34=0,'Weight Loss Tracker'!B33+5,'Weight Loss Tracker'!B34))","v":"2013-01-25"},{"$f":"'Weight Loss Tracker'!C34","v":172},{"$nulls":4},{"$error":"#N/A"},{"$error":"#N/A"},{"$f":"IFERROR(AVERAGEIFS(WeightTable[WEIGHT],WeightTable[DATE],\">=\"&H13,WeightTable[DATE],\"<=\"&I13),NA())","v":{"$error":"#N/A"}}]
[{"$f":"IF(('Weight Loss Tracker'!C35=0)*('Weight Loss Tracker'!C34=0),TRUE)","v":false},{"$f":"IF(A14,0,IF('Weight Loss Tracker'!B35=0,'Weight Loss Tracker'!B34+5,'Weight Loss Tracker'!B35))","v":"2013-02-01"},{"$f":"'Weight Loss Tracker'!C35","v":173},{"$nulls":4},{"$error":"#N/A"},{"$error":"#N/A"},{"$f":"IFERROR(AVERAGEIFS(WeightTable[WEIGHT],WeightTable[DATE],\">=\"&H14,WeightTable[DATE],\"<=\"&I14),NA())","v":{"$error":"#N/A"}}]
[{"$f":"IF(('Weight Loss Tracker'!C36=0)*('Weight Loss Tracker'!C35=0),TRUE)","v":false},{"$f":"IF(A15,0,IF('Weight Loss Tracker'!B36=0,'Weight Loss Tracker'!B35+5,'Weight Loss Tracker'!B36))","v":"2013-02-08"},{"$f":"'Weight Loss Tracker'!C36","v":174},{"$nulls":4},{"$error":"#N/A"},{"$error":"#N/A"},{"$f":"IFERROR(AVERAGEIFS(WeightTable[WEIGHT],WeightTable[DATE],\">=\"&H15,WeightTable[DATE],\"<=\"&I15),NA())","v":{"$error":"#N/A"}}]
[{"$f":"IF(('Weight Loss Tracker'!C37=0)*('Weight Loss Tracker'!C36=0),TRUE)","v":false},{"$f":"IF(A16,0,IF('Weight Loss Tracker'!B37=0,'Weight Loss Tracker'!B36+5,'Weight Loss Tracker'!B37))","v":"2013-02-15"},{"$f":"'Weight Loss Tracker'!C37","v":175},{"$nulls":4},{"$error":"#N/A"},{"$error":"#N/A"},{"$f":"IFERROR(AVERAGEIFS(WeightTable[WEIGHT],WeightTable[DATE],\">=\"&H16,WeightTable[DATE],\"<=\"&I16),NA())","v":{"$error":"#N/A"}}]
[{"$f":"IF(('Weight Loss Tracker'!C38=0)*('Weight Loss Tracker'!C37=0),TRUE)","v":false},{"$f":"IF(A17,0,IF('Weight Loss Tracker'!B38=0,'Weight Loss Tracker'!B37+5,'Weight Loss Tracker'!B38))","v":"2013-02-22"},{"$f":"'Weight Loss Tracker'!C38","v":0},{"$nulls":4},{"$error":"#N/A"},{"$error":"#N/A"},{"$f":"IFERROR(AVERAGEIFS(WeightTable[WEIGHT],WeightTable[DATE],\">=\"&H17,WeightTable[DATE],\"<=\"&I17),NA())","v":{"$error":"#N/A"}}]
[{"$f":"IF(('Weight Loss Tracker'!C39=0)*('Weight Loss Tracker'!C38=0),TRUE)","v":true},{"$f":"IF(A18,0,IF('Weight Loss Tracker'!B39=0,'Weight Loss Tracker'!B38+5,'Weight Loss Tracker'!B39))","v":"00:00:00"},{"$f":"'Weight Loss Tracker'!C39","v":0},{"$nulls":4},{"$error":"#N/A"},{"$error":"#N/A"},{"$f":"IFERROR(AVERAGEIFS(WeightTable[WEIGHT],WeightTable[DATE],\">=\"&H18,WeightTable[DATE],\"<=\"&I18),NA())","v":{"$error":"#N/A"}}]
[{"$f":"IF(('Weight Loss Tracker'!C40=0)*('Weight Loss Tracker'!C39=0),TRUE)","v":true},{"$f":"IF(A19,0,IF('Weight Loss Tracker'!B40=0,'Weight Loss Tracker'!B39+5,'Weight Loss Tracker'!B40))","v":"00:00:00"},{"$f":"'Weight Loss Tracker'!C40","v":0},{"$nulls":4},{"$error":"#N/A"},{"$error":"#N/A"},{"$f":"IFERROR(AVERAGEIFS(WeightTable[WEIGHT],WeightTable[DATE],\">=\"&H19,WeightTable[DATE],\"<=\"&I19),NA())","v":{"$error":"#N/A"}}]
[{"$f":"IF(('Weight Loss Tracker'!C41=0)*('Weight Loss Tracker'!C40=0),TRUE)","v":true},{"$f":"IF(A20,0,IF('Weight Loss Tracker'!B41=0,'Weight Loss Tracker'!B40+5,'Weight Loss Tracker'!B41))","v":"00:00:00"},{"$f":"'Weight Loss Tracker'!C41","v":0},{"$nulls":4},{"$error":"#N/A"},{"$error":"#N/A"},{"$f":"IFERROR(AVERAGEIFS(WeightTable[WEIGHT],WeightTable[DATE],\">=\"&H20,WeightTable[DATE],\"<=\"&I20),NA())","v":{"$error":"#N/A"}}]
[{"$f":"IF(('Weight Loss Tracker'!C42=0)*('Weight Loss Tracker'!C41=0),TRUE)","v":true},{"$f":"IF(A21,0,IF('Weight Loss Tracker'!B42=0,'Weight Loss Tracker'!B41+5,'Weight Loss Tracker'!B42))","v":"00:00:00"},{"$f":"'Weight Loss Tracker'!C42","v":0},{"$nulls":4},{"$error":"#N/A"},{"$error":"#N/A"},{"$f":"IFERROR(AVERAGEIFS(WeightTable[WEIGHT],WeightTable[DATE],\">=\"&H21,WeightTable[DATE],\"<=\"&I21),NA())","v":{"$error":"#N/A"}}]
[{"$f":"IF(('Weight Loss Tracker'!C43=0)*('Weight Loss Tracker'!C42=0),TRUE)","v":true},{"$f":"IF(A22,0,IF('Weight Loss Tracker'!B43=0,'Weight Loss Tracker'!B42+5,'Weight Loss Tracker'!B43))","v":"00:00:00"},{"$f":"'Weight Loss Tracker'!C43","v":0},{"$nulls":4},{"$error":"#N/A"},{"$error":"#N/A"},{"$f":"IFERROR(AVERAGEIFS(WeightTable[WEIGHT],WeightTable[DATE],\">=\"&H22,WeightTable[DATE],\"<=\"&I22),NA())","v":{"$error":"#N/A"}}]
[{"$f":"IF(('Weight Loss Tracker'!C44=0)*('Weight Loss Tracker'!C43=0),TRUE)","v":true},{"$f":"IF(A23,0,IF('Weight Loss Tracker'!B44=0,'Weight Loss Tracker'!B43+5,'Weight Loss Tracker'!B44))","v":"00:00:00"},{"$f":"'Weight Loss Tracker'!C44","v":0},{"$nulls":4},{"$error":"#N/A"},{"$error":"#N/A"},{"$f":"IFERROR(AVERAGEIFS(WeightTable[WEIGHT],WeightTable[DATE],\">=\"&H23,WeightTable[DATE],\"<=\"&I23),NA())","v":{"$error":"#N/A"}}]
[{"$f":"IF(('Weight Loss Tracker'!C45=0)*('Weight Loss Tracker'!C44=0),TRUE)","v":true},{"$f":"IF(A24,0,IF('Weight Loss Tracker'!B45=0,'Weight Loss Tracker'!B44+5,'Weight Loss Tracker'!B45))","v":"00:00:00"},{"$f":"'Weight Loss Tracker'!C45","v":0},{"$nulls":4},{"$error":"#N/A"},{"$error":"#N/A"},{"$f":"IFERROR(AVERAGEIFS(WeightTable[WEIGHT],WeightTable[DATE],\">=\"&H24,WeightTable[DATE],\"<=\"&I24),NA())","v":{"$error":"#N/A"}}]
[{"$f":"IF(('Weight Loss Tracker'!C46=0)*('Weight Loss Tracker'!C45=0),TRUE)","v":true},{"$f":"IF(A25,0,IF('Weight Loss Tracker'!B46=0,'Weight Loss Tracker'!B45+5,'Weight Loss Tracker'!B46))","v":"00:00:00"},{"$f":"'Weight Loss Tracker'!C46","v":0},{"$nulls":4},{"$error":"#N/A"},{"$error":"#N/A"},{"$f":"IFERROR(AVERAGEIFS(WeightTable[WEIGHT],WeightTable[DATE],\">=\"&H25,WeightTable[DATE],\"<=\"&I25),NA())","v":{"$error":"#N/A"}}]
[{"$f":"IF(('Weight Loss Tracker'!C47=0)*('Weight Loss Tracker'!C46=0),TRUE)","v":true},{"$f":"IF(A26,0,IF('Weight Loss Tracker'!B47=0,'Weight Loss Tracker'!B46+5,'Weight Loss Tracker'!B47))","v":"00:00:00"},{"$f":"'Weight Loss Tracker'!C47","v":0},{"$nulls":4},{"$error":"#N/A"},{"$error":"#N/A"},{"$f":"IFERROR(AVERAGEIFS(WeightTable[WEIGHT],WeightTable[DATE],\">=\"&H26,WeightTable[DATE],\"<=\"&I26),NA())","v":{"$error":"#N/A"}}]
[{"$f":"IF(('Weight Loss Tracker'!C48=0)*('Weight Loss Tracker'!C47=0),TRUE)","v":true},{"$f":"IF(A27,0,IF('Weight Loss Tracker'!B48=0,'Weight Loss Tracker'!B47+5,'Weight Loss Tracker'!B48))","v":"00:00:00"},{"$f":"'Weight Loss Tracker'!C48","v":0},{"$nulls":4},{"$error":"#N/A"},{"$error":"#N/A"},{"$f":"IFERROR(AVERAGEIFS(WeightTable[WEIGHT],WeightTable[DATE],\">=\"&H27,WeightTable[DATE],\"<=\"&I27),NA())","v":{"$error":"#N/A"}}]
[{"$f":"IF(('Weight Loss Tracker'!C49=0)*('Weight Loss Tracker'!C48=0),TRUE)","v":true},{"$f":"IF(A28,0,IF('Weight Loss Tracker'!B49=0,'Weight Loss Tracker'!B48+5,'Weight Loss Tracker'!B49))","v":"00:00:00"},{"$f":"'Weight Loss Tracker'!C49","v":0},{"$nulls":4},{"$error":"#N/A"},{"$error":"#N/A"},{"$f":"IFERROR(AVERAGEIFS(WeightTable[WEIGHT],WeightTable[DATE],\">=\"&H28,WeightTable[DATE],\"<=\"&I28),NA())","v":{"$error":"#N/A"}}]
[{"$f":"IF(('Weight Loss Tracker'!C50=0)*('Weight Loss Tracker'!C49=0),TRUE)","v":true},{"$f":"IF(A29,0,IF('Weight Loss Tracker'!B50=0,'Weight Loss Tracker'!B49+5,'Weight Loss Tracker'!B50))","v":"00:00:00"},{"$f":"'Weight Loss Tracker'!C50","v":0}]
[{"$f":"IF(('Weight Loss Tracker'!C51=0)*('Weight Loss Tracker'!C50=0),TRUE)","v":true},{"$f":"IF(A30,0,IF('Weight Loss Tracker'!B51=0,'Weight Loss Tracker'!B50+5,'Weight Loss Tracker'!B51))","v":"00:00:00"},{"$f":"'Weight Loss Tracker'!C51","v":0}]
[{"$f":"IF(('Weight Loss Tracker'!C52=0)*('Weight Loss Tracker'!C51=0),TRUE)","v":true},{"$f":"IF(A31,0,IF('Weight Loss Tracker'!B52=0,'Weight Loss Tracker'!B51+5,'Weight Loss Tracker'!B52))","v":"00:00:00"},{"$f":"'Weight Loss Tracker'!C52","v":0}]
[{"$f":"IF(('Weight Loss Tracker'!C53=0)*('Weight Loss Tracker'!C52=0),TRUE)","v":true},{"$f":"IF(A32,0,IF('Weight Loss Tracker'!B53=0,'Weight Loss Tracker'!B52+5,'Weight Loss Tracker'!B53))","v":"00:00:00"},{"$f":"'Weight Loss Tracker'!C53","v":0}]
[{"$f":"IF(('Weight Loss Tracker'!C54=0)*('Weight Loss Tracker'!C53=0),TRUE)","v":true},{"$f":"IF(A33,0,IF('Weight Loss Tracker'!B54=0,'Weight Loss Tracker'!B53+5,'Weight Loss Tracker'!B54))","v":"00:00:00"},{"$f":"'Weight Loss Tracker'!C54","v":0}]
[{"$f":"IF(('Weight Loss Tracker'!C55=0)*('Weight Loss Tracker'!C54=0),TRUE)","v":true},{"$f":"IF(A34,0,IF('Weight Loss Tracker'!B55=0,'Weight Loss Tracker'!B54+5,'Weight Loss Tracker'!B55))","v":"00:00:00"},{"$f":"'Weight Loss Tracker'!C55","v":0}]
[{"$f":"IF(('Weight Loss Tracker'!C56=0)*('Weight Loss Tracker'!C55=0),TRUE)","v":true},{"$f":"IF(A35,0,IF('Weight Loss Tracker'!B56=0,'Weight Loss Tracker'!B55+5,'Weight Loss Tracker'!B56))","v":"00:00:00"},{"$f":"'Weight Loss Tracker'!C56","v":0}]
[{"$f":"IF(('Weight Loss Tracker'!C57=0)*('Weight Loss Tracker'!C56=0),TRUE)","v":true},{"$f":"IF(A36,0,IF('Weight Loss Tracker'!B57=0,'Weight Loss Tracker'!B56+5,'Weight Loss Tracker'!B57))","v":"00:00:00"},{"$f":"'Weight Loss Tracker'!C57","v":0}]
[{"$f":"IF(('Weight Loss Tracker'!C58=0)*('Weight Loss Tracker'!C57=0),TRUE)","v":true},{"$f":"IF(A37,0,IF('Weight Loss Tracker'!B58=0,'Weight Loss Tracker'!B57+5,'Weight Loss Tracker'!B58))","v":"00:00:00"},{"$f":"'Weight Loss Tracker'!C58","v":0}]
[{"$f":"IF(('Weight Loss Tracker'!C59=0)*('Weight Loss Tracker'!C58=0),TRUE)","v":true},{"$f":"IF(A38,0,IF('Weight Loss Tracker'!B59=0,'Weight Loss Tracker'!B58+5,'Weight Loss Tracker'!B59))","v":"00:00:00"},{"$f":"'Weight Loss Tracker'!C59","v":0}]
[{"$f":"IF(('Weight Loss Tracker'!C60=0)*('Weight Loss Tracker'!C59=0),TRUE)","v":true},{"$f":"IF(A39,0,IF('Weight Loss Tracker'!B60=0,'Weight Loss Tracker'!B59+5,'Weight Loss Tracker'!B60))","v":"00:00:00"},{"$f":"'Weight Loss Tracker'!C60","v":0}]
[{"$f":"IF(('Weight Loss Tracker'!C61=0)*('Weight Loss Tracker'!C60=0),TRUE)","v":true},{"$f":"IF(A40,0,IF('Weight Loss Tracker'!B61=0,'Weight Loss Tracker'!B60+5,'Weight Loss Tracker'!B61))","v":"00:00:00"},{"$f":"'Weight Loss Tracker'!C61","v":0}]
[{"$f":"IF(('Weight Loss Tracker'!C62=0)*('Weight Loss Tracker'!C61=0),TRUE)","v":true},{"$f":"IF(A41,0,IF('Weight Loss Tracker'!B62=0,'Weight Loss Tracker'!B61+5,'Weight Loss Tracker'!B62))","v":"00:00:00"},{"$f":"'Weight Loss Tracker'!C62","v":0}]
[{"$f":"IF(('Weight Loss Tracker'!C63=0)*('Weight Loss Tracker'!C62=0),TRUE)","v":true},{"$f":"IF(A42,0,IF('Weight Loss Tracker'!B63=0,'Weight Loss Tracker'!B62+5,'Weight Loss Tracker'!B63))","v":"00:00:00"},{"$f":"'Weight Loss Tracker'!C63","v":0}]
[{"$f":"IF(('Weight Loss Tracker'!C64=0)*('Weight Loss Tracker'!C63=0),TRUE)","v":true},{"$f":"IF(A43,0,IF('Weight Loss Tracker'!B64=0,'Weight Loss Tracker'!B63+5,'Weight Loss Tracker'!B64))","v":"00:00:00"},{"$f":"'Weight Loss Tracker'!C64","v":0}]
[{"$f":"IF(('Weight Loss Tracker'!C65=0)*('Weight Loss Tracker'!C64=0),TRUE)","v":true},{"$f":"IF(A44,0,IF('Weight Loss Tracker'!B65=0,'Weight Loss Tracker'!B64+5,'Weight Loss Tracker'!B65))","v":"00:00:00"},{"$f":"'Weight Loss Tracker'!C65","v":0}]
[{"$f":"IF(('Weight Loss Tracker'!C66=0)*('Weight Loss Tracker'!C65=0),TRUE)","v":true},{"$f":"IF(A45,0,IF('Weight Loss Tracker'!B66=0,'Weight Loss Tracker'!B65+5,'Weight Loss Tracker'!B66))","v":"00:00:00"},{"$f":"'Weight Loss Tracker'!C66","v":0}]
[{"$f":"IF(('Weight Loss Tracker'!C67=0)*('Weight Loss Tracker'!C66=0),TRUE)","v":true},{"$f":"IF(A46,0,IF('Weight Loss Tracker'!B67=0,'Weight Loss Tracker'!B66+5,'Weight Loss Tracker'!B67))","v":"00:00:00"},{"$f":"'Weight Loss Tracker'!C67","v":0}]
[{"$f":"IF(('Weight Loss Tracker'!C68=0)*('Weight Loss Tracker'!C67=0),TRUE)","v":true},{"$f":"IF(A47,0,IF('Weight Loss Tracker'!B68=0,'Weight Loss Tracker'!B67+5,'Weight Loss Tracker'!B68))","v":"00:00:00"},{"$f":"'Weight Loss Tracker'!C68","v":0}]
[{"$f":"IF(('Weight Loss Tracker'!C69=0)*('Weight Loss Tracker'!C68=0),TRUE)","v":true},{"$f":"IF(A48,0,IF('Weight Loss Tracker'!B69=0,'Weight Loss Tracker'!B68+5,'Weight Loss Tracker'!B69))","v":"00:00:00"},{"$f":"'Weight Loss Tracker'!C69","v":0}]
[{"$f":"IF(('Weight Loss Tracker'!C70=0)*('Weight Loss Tracker'!C69=0),TRUE)","v":true},{"$f":"IF(A49,0,IF('Weight Loss Tracker'!B70=0,'Weight Loss Tracker'!B69+5,'Weight Loss Tracker'!B70))","v":"00:00:00"},{"$f":"'Weight Loss Tracker'!C70","v":0}]
[{"$f":"IF(('Weight Loss Tracker'!C71=0)*('Weight Loss Tracker'!C70=0),TRUE)","v":true},{"$f":"IF(A50,0,IF('Weight Loss Tracker'!B71=0,'Weight Loss Tracker'!B70+5,'Weight Loss Tracker'!B71))","v":"00:00:00"},{"$f":"'Weight Loss Tracker'!C71","v":0}]
[{"$f":"IF(('Weight Loss Tracker'!C72=0)*('Weight Loss Tracker'!C71=0),TRUE)","v":true},{"$f":"IF(A51,0,IF('Weight Loss Tracker'!B72=0,'Weight Loss Tracker'!B71+5,'Weight Loss Tracker'!B72))","v":"00:00:00"},{"$f":"'Weight Loss Tracker'!C72","v":0}]
[{"$f":"IF(('Weight Loss Tracker'!C73=0)*('Weight Loss Tracker'!C72=0),TRUE)","v":true},{"$f":"IF(A52,0,IF('Weight Loss Tracker'!B73=0,'Weight Loss Tracker'!B72+5,'Weight Loss Tracker'!B73))","v":"00:00:00"},{"$f":"'Weight Loss Tracker'!C73","v":0}]
[{"$f":"IF(('Weight Loss Tracker'!C74=0)*('Weight Loss Tracker'!C73=0),TRUE)","v":true},{"$f":"IF(A53,0,IF('Weight Loss Tracker'!B74=0,'Weight Loss Tracker'!B73+5,'Weight Loss Tracker'!B74))","v":"00:00:00"},{"$f":"'Weight Loss Tracker'!C74","v":0}]
[{"$f":"IF(('Weight Loss Tracker'!C75=0)*('Weight Loss Tracker'!C74=0),TRUE)","v":true},{"$f":"IF(A54,0,IF('Weight Loss Tracker'!B75=0,'Weight Loss Tracker'!B74+5,'Weight Loss Tracker'!B75))","v":"00:00:00"},{"$f":"'Weight Loss Tracker'!C75","v":0}]
[{"$f":"IF(('Weight Loss Tracker'!C76=0)*('Weight Loss Tracker'!C75=0),TRUE)","v":true},{"$f":"IF(A55,0,IF('Weight Loss Tracker'!B76=0,'Weight Loss Tracker'!B75+5,'Weight Loss Tracker'!B76))","v":"00:00:00"},{"$f":"'Weight Loss Tracker'!C76","v":0}]
[{"$f":"IF(('Weight Loss Tracker'!C77=0)*('Weight Loss Tracker'!C76=0),TRUE)","v":true},{"$f":"IF(A56,0,IF('Weight Loss Tracker'!B77=0,'Weight Loss Tracker'!B76+5,'Weight Loss Tracker'!B77))","v":"00:00:00"},{"$f":"'Weight Loss Tracker'!C77","v":0}]
[{"$f":"IF(('Weight Loss Tracker'!C78=0)*('Weight Loss Tracker'!C77=0),TRUE)","v":true},{"$f":"IF(A57,0,IF('Weight Loss Tracker'!B78=0,'Weight Loss Tracker'!B77+5,'Weight Loss Tracker'!B78))","v":"00:00:00"},{"$f":"'Weight Loss Tracker'!C78","v":0}]
[{"$f":"IF(('Weight Loss Tracker'!C79=0)*('Weight Loss Tracker'!C78=0),TRUE)","v":true},{"$f":"IF(A58,0,IF('Weight Loss Tracker'!B79=0,'Weight Loss Tracker'!B78+5,'Weight Loss Tracker'!B79))","v":"00:00:00"},{"$f":"'Weight Loss Tracker'!C79","v":0}]
[{"$f":"IF(('Weight Loss Tracker'!C80=0)*('Weight Loss Tracker'!C79=0),TRUE)","v":true},{"$f":"IF(A59,0,IF('Weight Loss Tracker'!B80=0,'Weight Loss Tracker'!B79+5,'Weight Loss Tracker'!B80))","v":"00:00:00"},{"$f":"'Weight Loss Tracker'!C80","v":0}]
[{"$f":"IF(('Weight Loss Tracker'!C81=0)*('Weight Loss Tracker'!C80=0),TRUE)","v":true},{"$f":"IF(A60,0,IF('Weight Loss Tracker'!B81=0,'Weight Loss Tracker'!B80+5,'Weight Loss Tracker'!B81))","v":"00:00:00"},{"$f":"'Weight Loss Tracker'!C81","v":0}]
[{"$f":"IF(('Weight Loss Tracker'!C82=0)*('Weight Loss Tracker'!C81=0),TRUE)","v":true},{"$f":"IF(A61,0,IF('Weight Loss Tracker'!B82=0,'Weight Loss Tracker'!B81+5,'Weight Loss Tracker'!B82))","v":"00:00:00"},{"$f":"'Weight Loss Tracker'!C82","v":0}]
[{"$f":"IF(('Weight Loss Tracker'!C83=0)*('Weight Loss Tracker'!C82=0),TRUE)","v":true},{"$f":"IF(A62,0,IF('Weight Loss Tracker'!B83=0,'Weight Loss Tracker'!B82+5,'Weight Loss Tracker'!B83))","v":"00:00:00"},{"$f":"'Weight Loss Tracker'!C83","v":0}]
[{"$f":"IF(('Weight Loss Tracker'!C84=0)*('Weight Loss Tracker'!C83=0),TRUE)","v":true},{"$f":"IF(A63,0,IF('Weight Loss Tracker'!B84=0,'Weight Loss Tracker'!B83+5,'Weight Loss Tracker'!B84))","v":"00:00:00"},{"$f":"'Weight Loss Tracker'!C84","v":0}]
[{"$f":"IF(('Weight Loss Tracker'!C85=0)*('Weight Loss Tracker'!C84=0),TRUE)","v":true},{"$f":"IF(A64,0,IF('Weight Loss Tracker'!B85=0,'Weight Loss Tracker'!B84+5,'Weight Loss Tracker'!B85))","v":"00:00:00"},{"$f":"'Weight Loss Tracker'!C85","v":0}]
[{"$f":"IF(('Weight Loss Tracker'!C86=0)*('Weight Loss Tracker'!C85=0),TRUE)","v":true},{"$f":"IF(A65,0,IF('Weight Loss Tracker'!B86=0,'Weight Loss Tracker'!B85+5,'Weight Loss Tracker'!B86))","v":"00:00:00"},{"$f":"'Weight Loss Tracker'!C86","v":0}]
[{"$f":"IF(('Weight Loss Tracker'!C87=0)*('Weight Loss Tracker'!C86=0),TRUE)","v":true},{"$f":"IF(A66,0,IF('Weight Loss Tracker'!B87=0,'Weight Loss Tracker'!B86+5,'Weight Loss Tracker'!B87))","v":"00:00:00"},{"$f":"'Weight Loss Tracker'!C87","v":0}]
[{"$f":"IF(('Weight Loss Tracker'!C88=0)*('Weight Loss Tracker'!C87=0),TRUE)","v":true},{"$f":"IF(A67,0,IF('Weight Loss Tracker'!B88=0,'Weight Loss Tracker'!B87+5,'Weight Loss Tracker'!B88))","v":"00:00:00"},{"$f":"'Weight Loss Tracker'!C88","v":0}]
[{"$f":"IF(('Weight Loss Tracker'!C89=0)*('Weight Loss Tracker'!C88=0),TRUE)","v":true},{"$f":"IF(A68,0,IF('Weight Loss Tracker'!B89=0,'Weight Loss Tracker'!B88+5,'Weight Loss Tracker'!B89))","v":"00:00:00"},{"$f":"'Weight Loss Tracker'!C89","v":0}]
[{"$f":"IF(('Weight Loss Tracker'!C90=0)*('Weight Loss Tracker'!C89=0),TRUE)","v":true},{"$f":"IF(A69,0,IF('Weight Loss Tracker'!B90=0,'Weight Loss Tracker'!B89+5,'Weight Loss Tracker'!B90))","v":"00:00:00"},{"$f":"'Weight Loss Tracker'!C90","v":0}]
[{"$f":"IF(('Weight Loss Tracker'!C91=0)*('Weight Loss Tracker'!C90=0),TRUE)","v":true},{"$f":"IF(A70,0,IF('Weight Loss Tracker'!B91=0,'Weight Loss Tracker'!B90+5,'Weight Loss Tracker'!B91))","v":"00:00:00"},{"$f":"'Weight Loss Tracker'!C91","v":0}]
[{"$f":"IF(('Weight Loss Tracker'!C92=0)*('Weight Loss Tracker'!C91=0),TRUE)","v":true},{"$f":"IF(A71,0,IF('Weight Loss Tracker'!B92=0,'Weight Loss Tracker'!B91+5,'Weight Loss Tracker'!B92))","v":"00:00:00"},{"$f":"'Weight Loss Tracker'!C92","v":0}]
[{"$f":"IF(('Weight Loss Tracker'!C93=0)*('Weight Loss Tracker'!C92=0),TRUE)","v":true},{"$f":"IF(A72,0,IF('Weight Loss Tracker'!B93=0,'Weight Loss Tracker'!B92+5,'Weight Loss Tracker'!B93))","v":"00:00:00"},{"$f":"'Weight Loss Tracker'!C93","v":0}]
[{"$f":"IF(('Weight Loss Tracker'!C94=0)*('Weight Loss Tracker'!C93=0),TRUE)","v":true},{"$f":"IF(A73,0,IF('Weight Loss Tracker'!B94=0,'Weight Loss Tracker'!B93+5,'Weight Loss Tracker'!B94))","v":"00:00:00"},{"$f":"'Weight Loss Tracker'!C94","v":0}]
[{"$f":"IF(('Weight Loss Tracker'!C95=0)*('Weight Loss Tracker'!C94=0),TRUE)","v":true},{"$f":"IF(A74,0,IF('Weight Loss Tracker'!B95=0,'Weight Loss Tracker'!B94+5,'Weight Loss Tracker'!B95))","v":"00:00:00"},{"$f":"'Weight Loss Tracker'!C95","v":0}]
[{"$f":"IF(('Weight Loss Tracker'!C96=0)*('Weight Loss Tracker'!C95=0),TRUE)","v":true},{"$f":"IF(A75,0,IF('Weight Loss Tracker'!B96=0,'Weight Loss Tracker'!B95+5,'Weight Loss Tracker'!B96))","v":"00:00:00"},{"$f":"'Weight Loss Tracker'!C96","v":0}]
[{"$f":"IF(('Weight Loss Tracker'!C97=0)*('Weight Loss Tracker'!C96=0),TRUE)","v":true},{"$f":"IF(A76,0,IF('Weight Loss Tracker'!B97=0,'Weight Loss Tracker'!B96+5,'Weight Loss Tracker'!B97))","v":"00:00:00"},{"$f":"'Weight Loss Tracker'!C97","v":0}]
[{"$f":"IF(('Weight Loss Tracker'!C98=0)*('Weight Loss Tracker'!C97=0),TRUE)","v":true},{"$f":"IF(A77,0,IF('Weight Loss Tracker'!B98=0,'Weight Loss Tracker'!B97+5,'Weight Loss Tracker'!B98))","v":"00:00:00"},{"$f":"'Weight Loss Tracker'!C98","v":0}]
[{"$f":"IF(('Weight Loss Tracker'!C99=0)*('Weight Loss Tracker'!C98=0),TRUE)","v":true},{"$f":"IF(A78,0,IF('Weight Loss Tracker'!B99=0,'Weight Loss Tracker'!B98+5,'Weight Loss Tracker'!B99))","v":"00:00:00"},{"$f":"'Weight Loss Tracker'!C99","v":0}]
[{"$f":"IF(('Weight Loss Tracker'!C100=0)*('Weight Loss Tracker'!C99=0),TRUE)","v":true},{"$f":"IF(A79,0,IF('Weight Loss Tracker'!B100=0,'Weight Loss Tracker'!B99+5,'Weight Loss Tracker'!B100))","v":"00:00:00"},{"$f":"'Weight Loss Tracker'!C100","v":0}]
[{"$f":"IF(('Weight Loss Tracker'!C101=0)*('Weight Loss Tracker'!C100=0),TRUE)","v":true},{"$f":"IF(A80,0,IF('Weight Loss Tracker'!B101=0,'Weight Loss Tracker'!B100+5,'Weight Loss Tracker'!B101))","v":"00:00:00"},{"$f":"'Weight Loss Tracker'!C101","v":0}]
[{"$f":"IF(('Weight Loss Tracker'!C102=0)*('Weight Loss Tracker'!C101=0),TRUE)","v":true},{"$f":"IF(A81,0,IF('Weight Loss Tracker'!B102=0,'Weight Loss Tracker'!B101+5,'Weight Loss Tracker'!B102))","v":"00:00:00"},{"$f":"'Weight Loss Tracker'!C102","v":0}]
[{"$f":"IF(('Weight Loss Tracker'!C103=0)*('Weight Loss Tracker'!C102=0),TRUE)","v":true},{"$f":"IF(A82,0,IF('Weight Loss Tracker'!B103=0,'Weight Loss Tracker'!B102+5,'Weight Loss Tracker'!B103))","v":"00:00:00"},{"$f":"'Weight Loss Tracker'!C103","v":0}]
[{"$f":"IF(('Weight Loss Tracker'!C104=0)*('Weight Loss Tracker'!C103=0),TRUE)","v":true},{"$f":"IF(A83,0,IF('Weight Loss Tracker'!B104=0,'Weight Loss Tracker'!B103+5,'Weight Loss Tracker'!B104))","v":"00:00:00"},{"$f":"'Weight Loss Tracker'!C104","v":0}]
[{"$f":"IF(('Weight Loss Tracker'!C105=0)*('Weight Loss Tracker'!C104=0),TRUE)","v":true},{"$f":"IF(A84,0,IF('Weight Loss Tracker'!B105=0,'Weight Loss Tracker'!B104+5,'Weight Loss Tracker'!B105))","v":"00:00:00"},{"$f":"'Weight Loss Tracker'!C105","v":0}]
[{"$f":"IF(('Weight Loss Tracker'!C106=0)*('Weight Loss Tracker'!C105=0),TRUE)","v":true},{"$f":"IF(A85,0,IF('Weight Loss Tracker'!B106=0,'Weight Loss Tracker'!B105+5,'Weight Loss Tracker'!B106))","v":"00:00:00"},{"$f":"'Weight Loss Tracker'!C106","v":0}]
[{"$f":"IF(('Weight Loss Tracker'!C107=0)*('Weight Loss Tracker'!C106=0),TRUE)","v":true},{"$f":"IF(A86,0,IF('Weight Loss Tracker'!B107=0,'Weight Loss Tracker'!B106+5,'Weight Loss Tracker'!B107))","v":"00:00:00"},{"$f":"'Weight Loss Tracker'!C107","v":0}]
[{"$f":"IF(('Weight Loss Tracker'!C108=0)*('Weight Loss Tracker'!C107=0),TRUE)","v":true},{"$f":"IF(A87,0,IF('Weight Loss Tracker'!B108=0,'Weight Loss Tracker'!B107+5,'Weight Loss Tracker'!B108))","v":"00:00:00"},{"$f":"'Weight Loss Tracker'!C108","v":0}]
[{"$f":"IF(('Weight Loss Tracker'!C109=0)*('Weight Loss Tracker'!C108=0),TRUE)","v":true},{"$f":"IF(A88,0,IF('Weight Loss Tracker'!B109=0,'Weight Loss Tracker'!B108+5,'Weight Loss Tracker'!B109))","v":"00:00:00"},{"$f":"'Weight Loss Tracker'!C109","v":0}]
[{"$f":"IF(('Weight Loss Tracker'!C110=0)*('Weight Loss Tracker'!C109=0),TRUE)","v":true},{"$f":"IF(A89,0,IF('Weight Loss Tracker'!B110=0,'Weight Loss Tracker'!B109+5,'Weight Loss Tracker'!B110))","v":"00:00:00"},{"$f":"'Weight Loss Tracker'!C110","v":0}]
[{"$f":"IF(('Weight Loss Tracker'!C111=0)*('Weight Loss Tracker'!C110=0),TRUE)","v":true},{"$f":"IF(A90,0,IF('Weight Loss Tracker'!B111=0,'Weight Loss Tracker'!B110+5,'Weight Loss Tracker'!B111))","v":"00:00:00"},{"$f":"'Weight Loss Tracker'!C111","v":0}]
[{"$f":"IF(('Weight Loss Tracker'!C112=0)*('Weight Loss Tracker'!C111=0),TRUE)","v":true},{"$f":"IF(A91,0,IF('Weight Loss Tracker'!B112=0,'Weight Loss Tracker'!B111+5,'Weight Loss Tracker'!B112))","v":"00:00:00"},{"$f":"'Weight Loss Tracker'!C112","v":0}]
[{"$f":"IF(('Weight Loss Tracker'!C113=0)*('Weight Loss Tracker'!C112=0),TRUE)","v":true},{"$f":"IF(A92,0,IF('Weight Loss Tracker'!B113=0,'Weight Loss Tracker'!B112+5,'Weight Loss Tracker'!B113))","v":"00:00:00"},{"$f":"'Weight Loss Tracker'!C113","v":0}]
[{"$f":"IF(('Weight Loss Tracker'!C114=0)*('Weight Loss Tracker'!C113=0),TRUE)","v":true},{"$f":"IF(A93,0,IF('Weight Loss Tracker'!B114=0,'Weight Loss Tracker'!B113+5,'Weight Loss Tracker'!B114))","v":"00:00:00"},{"$f":"'Weight Loss Tracker'!C114","v":0}]
[{"$f":"IF(('Weight Loss Tracker'!C115=0)*('Weight Loss Tracker'!C114=0),TRUE)","v":true},{"$f":"IF(A94,0,IF('Weight Loss Tracker'!B115=0,'Weight Loss Tracker'!B114+5,'Weight Loss Tracker'!B115))","v":"00:00:00"},{"$f":"'Weight Loss Tracker'!C115","v":0}]
[{"$f":"IF(('Weight Loss Tracker'!C116=0)*('Weight Loss Tracker'!C115=0),TRUE)","v":true},{"$f":"IF(A95,0,IF('Weight Loss Tracker'!B116=0,'Weight Loss Tracker'!B115+5,'Weight Loss Tracker'!B116))","v":"00:00:00"},{"$f":"'Weight Loss Tracker'!C116","v":0}]
[{"$f":"IF(('Weight Loss Tracker'!C117=0)*('Weight Loss Tracker'!C116=0),TRUE)","v":true},{"$f":"IF(A96,0,IF('Weight Loss Tracker'!B117=0,'Weight Loss Tracker'!B116+5,'Weight Loss Tracker'!B117))","v":"00:00:00"},{"$f":"'Weight Loss Tracker'!C117","v":0}]
[{"$f":"IF(('Weight Loss Tracker'!C118=0)*('Weight Loss Tracker'!C117=0),TRUE)","v":true},{"$f":"IF(A97,0,IF('Weight Loss Tracker'!B118=0,'Weight Loss Tracker'!B117+5,'Weight Loss Tracker'!B118))","v":"00:00:00"},{"$f":"'Weight Loss Tracker'!C118","v":0}]
[{"$f":"IF(('Weight Loss Tracker'!C119=0)*('Weight Loss Tracker'!C118=0),TRUE)","v":true},{"$f":"IF(A98,0,IF('Weight Loss Tracker'!B119=0,'Weight Loss Tracker'!B118+5,'Weight Loss Tracker'!B119))","v":"00:00:00"},{"$f":"'Weight Loss Tracker'!C119","v":0}]
[{"$f":"IF(('Weight Loss Tracker'!C120=0)*('Weight Loss Tracker'!C119=0),TRUE)","v":true},{"$f":"IF(A99,0,IF('Weight Loss Tracker'!B120=0,'Weight Loss Tracker'!B119+5,'Weight Loss Tracker'!B120))","v":"00:00:00"},{"$f":"'Weight Loss Tracker'!C120","v":0}]
[{"$f":"IF(('Weight Loss Tracker'!C121=0)*('Weight Loss Tracker'!C120=0),TRUE)","v":true},{"$f":"IF(A100,0,IF('Weight Loss Tracker'!B121=0,'Weight Loss Tracker'!B120+5,'Weight Loss Tracker'!B121))","v":"00:00:00"},{"$f":"'Weight Loss Tracker'!C121","v":0}]
[{"$f":"IF(('Weight Loss Tracker'!C122=0)*('Weight Loss Tracker'!C121=0),TRUE)","v":true},{"$f":"IF(A101,0,IF('Weight Loss Tracker'!B122=0,'Weight Loss Tracker'!B121+5,'Weight Loss Tracker'!B122))","v":"00:00:00"},{"$f":"'Weight Loss Tracker'!C122","v":0}]
[{"$f":"IF(('Weight Loss Tracker'!C123=0)*('Weight Loss Tracker'!C122=0),TRUE)","v":true},{"$f":"IF(A102,0,IF('Weight Loss Tracker'!B123=0,'Weight Loss Tracker'!B122+5,'Weight Loss Tracker'!B123))","v":"00:00:00"},{"$f":"'Weight Loss Tracker'!C123","v":0}]
[{"$f":"IF(('Weight Loss Tracker'!C124=0)*('Weight Loss Tracker'!C123=0),TRUE)","v":true},{"$f":"IF(A103,0,IF('Weight Loss Tracker'!B124=0,'Weight Loss Tracker'!B123+5,'Weight Loss Tracker'!B124))","v":"00:00:00"},{"$f":"'Weight Loss Tracker'!C124","v":0}]
[{"$f":"IF(('Weight Loss Tracker'!C125=0)*('Weight Loss Tracker'!C124=0),TRUE)","v":true},{"$f":"IF(A104,0,IF('Weight Loss Tracker'!B125=0,'Weight Loss Tracker'!B124+5,'Weight Loss Tracker'!B125))","v":"00:00:00"},{"$f":"'Weight Loss Tracker'!C125","v":0}]
[{"$f":"IF(('Weight Loss Tracker'!C126=0)*('Weight Loss Tracker'!C125=0),TRUE)","v":true},{"$f":"IF(A105,0,IF('Weight Loss Tracker'!B126=0,'Weight Loss Tracker'!B125+5,'Weight Loss Tracker'!B126))","v":"00:00:00"},{"$f":"'Weight Loss Tracker'!C126","v":0}]
[{"$f":"IF(('Weight Loss Tracker'!C127=0)*('Weight Loss Tracker'!C126=0),TRUE)","v":true},{"$f":"IF(A106,0,IF('Weight Loss Tracker'!B127=0,'Weight Loss Tracker'!B126+5,'Weight Loss Tracker'!B127))","v":"00:00:00"},{"$f":"'Weight Loss Tracker'!C127","v":0}]
[{"$f":"IF(('Weight Loss Tracker'!C128=0)*('Weight Loss Tracker'!C127=0),TRUE)","v":true},{"$f":"IF(A107,0,IF('Weight Loss Tracker'!B128=0,'Weight Loss Tracker'!B127+5,'Weight Loss Tracker'!B128))","v":"00:00:00"},{"$f":"'Weight Loss Tracker'!C128","v":0}]
[{"$f":"IF(('Weight Loss Tracker'!C129=0)*('Weight Loss Tracker'!C128=0),TRUE)","v":true},{"$f":"IF(A108,0,IF('Weight Loss Tracker'!B129=0,'Weight Loss Tracker'!B128+5,'Weight Loss Tracker'!B129))","v":"00:00:00"},{"$f":"'Weight Loss Tracker'!C129","v":0}]